fUSD/lending_fUSD_20241201
["ID","MTS","AMOUNT","RATE_DAILY","PERIOD"]
[343918256,1733064363553,150.0,7.141e-05,2]
[343918257,1733064405184,50000.0,0.0001,10]
[343918258,1733064405277,150.0,7.142e-05,2]
[343918261,1733064446860,150.0,7.144e-05,2]
[343918263,1733064489458,150.0,7.145e-05,2]
[343918264,1733064531401,150.0,7.147e-05,2]
[343918271,1733064573440,150.0,7.148e-05,2]
[343918272,1733064615802,150.0,7.149e-05,2]
[343918282,1733064631918,-289.05,7.221e-05,2]
[343918283,1733064631927,-168.879303,7.553e-05,2]
[343918284,1733064631936,-92.070697,7.735e-05,2]
[343918285,1733064631974,-99.069303,7.735e-05,2]
[343918286,1733064631983,-538.81,7.74e-05,2]
[343918287,1733064631992,-717.95787193,7.774e-05,2]
[343918288,1733064632002,-150.0,7.863e-05,2]
[343918289,1733064632011,-844.11,7.878e-05,2]
[343918290,1733064632020,-1500.0,7.89e-05,2]
[343918291,1733064632030,-8007.0,7.919e-05,2]
[343918292,1733064632040,-150.0,7.949e-05,2]
[343918293,1733064632049,-290.64744128,7.95e-05,2]
[343918294,1733064632060,-12792.16493017,7.95e-05,2]
[343918295,1733064632346,-5236.86363312,7.95e-05,2]
[343918296,1733064632357,-503.39701871,7.95e-05,2]
[343918298,1733064632368,-451.49839581,7.95e-05,2]
[343918300,1733064632379,-19486.76155812,7.95e-05,2]
[343918303,1733064632390,-71333.96963765,7.95e-05,2]
[343918304,1733064632402,-5471.89814606,7.95e-05,2]
[343918305,1733064632410,-500.0,7.973e-05,2]
[343918306,1733064632419,-511.09659655,7.973e-05,2]
[343918307,1733064632428,-595.607,7.995e-05,2]
[343918308,1733064632437,-195.06796258,7.998e-05,2]
[343918309,1733064632447,-181.66572052,7.998e-05,2]
[343918310,1733064632457,-500.0,7.998e-05,2]
[343918311,1733064632465,-500.0,7.998e-05,2]
[343918312,1733064632475,-477.21254107,7.998e-05,2]
[343918313,1733064632484,-500.0,7.998e-05,2]
[343918314,1733064632493,-500.0,7.998e-05,2]
[343918315,1733064632502,-500.0,7.998e-05,2]
[343918316,1733064632512,-500.0,7.998e-05,2]
[343918317,1733064632520,-500.0,7.998e-05,2]
[343918318,1733064632530,-500.0,7.998e-05,2]
[343918319,1733064632539,-500.0,7.998e-05,2]
[343918320,1733064632548,-500.0,7.998e-05,2]
[343918321,1733064632558,-500.0,7.998e-05,2]
[343918322,1733064632567,-500.0,7.998e-05,2]
[343918323,1733064632576,-500.0,7.998e-05,2]
[343918324,1733064632587,-500.0,7.998e-05,2]
[343918325,1733064632597,-278.72778738,7.998e-05,2]
[343918326,1733064632606,-500.0,7.998e-05,2]
[343918327,1733064632616,-500.0,7.998e-05,2]
[343918328,1733064632626,-500.0,7.998e-05,2]
[343918329,1733064632635,-500.0,7.998e-05,2]
[343918330,1733064632644,-500.0,7.998e-05,2]
[343918331,1733064632653,-500.0,7.998e-05,2]
[343918332,1733064632663,-500.0,7.998e-05,2]
[343918333,1733064632673,-500.0,7.998e-05,2]
[343918334,1733064632682,-500.0,7.998e-05,2]
[343918335,1733064632692,-201803.70452228,7.999e-05,2]
[343918339,1733064637926,-1455.29326305,7.999e-05,2]
[343918341,1733064638108,-1611.6,7.999e-05,2]
[343918342,1733064638120,-2105.73188,7.999e-05,2]
[343918343,1733064638289,-18903.8,7.999e-05,2]
[343918389,1733064640013,-275.13269928,7.999e-05,2]
[343918390,1733064640026,-356.35206296,7.999e-05,2]
[343918391,1733064640272,-165630.88028626,7.999e-05,2]
[343918405,1733064643038,-122919.47951894,7.999e-05,2]
[343918406,1733064643051,-931.13278959,7.999e-05,2]
[343918407,1733064643086,-513.39026001,7.999e-05,2]
[343918408,1733064643104,-1605.57003,7.999e-05,2]
[343918409,1733064643189,-92192.32402961,7.999e-05,2]
[343918410,1733064643242,-8087.0735218,7.999e-05,2]
[343918411,1733064643261,-1888.58,7.999e-05,2]
[343918412,1733064643281,-10541.3805,7.999e-05,2]
[343918413,1733064643308,-2888.2694937,7.999e-05,2]
[343918417,1733064643481,-787.68432449,7.999e-05,2]
[343918420,1733064643498,-381.82056366,7.999e-05,2]
[343918423,1733064643515,-22491.7547035,7.999e-05,2]
[343918542,1733064646167,-135000.35339167,7.999e-05,2]
[343918543,1733064647391,-299.58846575,7.998e-05,2]
[343918544,1733064647403,-1493.62473575,7.999e-05,2]
[343918545,1733064647567,-65610.17649869,7.999e-05,2]
[343918546,1733064647579,-16977.60363412,7.999e-05,2]
[343918547,1733064647591,-2298.416071,7.999e-05,2]
[343918550,1733064658198,245.7224895,7.151e-05,2]
[343918551,1733064696639,6466.2,0.00025,120]
[343918552,1733064706457,3919.87,0.0001,10]
[343918553,1733064802308,200.0,0.00025,120]
[343918554,1733064819942,50000.0,0.0001,10]
[343918558,1733065301551,50000.0,0.0001,10]
[343918559,1733065393216,2000.0,0.00025,120]
[343918560,1733065405208,155.021874,0.00025,120]
[343918594,1733065832136,-191.14,7.537e-05,2]
[343918595,1733065832146,-176.18,7.643e-05,2]
[343918597,1733065832155,-206.07853115,7.643e-05,2]
[343918599,1733065832164,-500.0,7.671e-05,2]
[343918601,1733065832179,-150.0,7.733e-05,2]
[343918603,1733065832188,-150.0,7.894e-05,2]
[343918605,1733065832198,-300.2556834,7.95e-05,2]
[343918607,1733065832207,-350.58365589,7.95e-05,2]
[343918609,1733065832216,-250.72427336,7.956e-05,2]
[343918611,1733065832226,-150.0,7.974e-05,2]
[343918612,1733065832235,-500.0,7.991e-05,2]
[343918613,1733065832244,-530.96975415,7.991e-05,2]
[343918614,1733065832254,-11169.18332405,7.992e-05,2]
[343918615,1733065832265,-1024.77478422,7.992e-05,2]
[343918616,1733065832362,-494.30163018,7.992e-05,2]
[343918617,1733065832374,-587.1212102,7.992e-05,2]
[343918618,1733065832386,-1255.09414537,7.992e-05,2]
[343918619,1733065832396,-1217.12636407,7.992e-05,2]
[343918620,1733065832520,-17224.51110464,7.992e-05,2]
[343918629,1733065838454,-5752.10648931,7.992e-05,2]
[343918630,1733065838502,-463.4202856,7.992e-05,2]
[343918631,1733065838515,-566.23990831,7.992e-05,2]
[343918632,1733065838565,-255.89999987,7.992e-05,2]
[343918633,1733065838627,-27877.02958417,7.992e-05,2]
[343918634,1733065838639,-585.82908246,7.992e-05,2]
[343918635,1733065838651,-3286.57965555,7.992e-05,2]
[343918636,1733065838682,-284.0,7.992e-05,2]
[343918637,1733065838730,-18660.37171778,7.992e-05,2]
[343918638,1733065838741,-945.17366622,7.992e-05,2]
[343918736,1733065840158,-1728.77262585,7.992e-05,2]
[343918737,1733065840170,-1925.36,7.992e-05,2]
[343918738,1733065840183,-513.56,7.992e-05,2]
[343918739,1733065840367,-2128.02913266,7.992e-05,2]
[343918740,1733065840379,-2884.65704334,7.992e-05,2]
[343918741,1733065840392,-1302.53483451,7.992e-05,2]
[343918742,1733065840404,-497.71855797,7.992e-05,2]
[343918743,1733065840415,-12462.10821371,7.992e-05,2]
[343918744,1733065840476,-761.78875014,7.992e-05,2]
[343918751,1733065843125,-488.97,7.992e-05,2]
[343918754,1733065843177,-1904.40678585,7.992e-05,2]
[343918756,1733065843188,-6118.29083568,7.992e-05,2]
[343918757,1733065843373,-7036.67488288,7.992e-05,2]
[343918758,1733065843385,-2635.06133212,7.992e-05,2]
[343918759,1733065843396,-609.69835131,7.992e-05,2]
[343918760,1733065843408,-4775.57346463,7.992e-05,2]
[343918761,1733065843462,-443.25700348,7.992e-05,2]
[343918762,1733065843476,-609.2605884,7.992e-05,2]
[343918763,1733065843487,-23897.6775,7.992e-05,2]
[343918764,1733065843499,-15154.23040809,7.992e-05,2]
[343918765,1733065843541,-1298.77500396,7.992e-05,2]
[343918766,1733065843580,-2770.55786474,7.992e-05,2]
[343918828,1733065846030,-42069.35403911,7.992e-05,2]
[343918829,1733065846042,-715.86,7.992e-05,2]
[343918830,1733065846115,-687.6566005,7.992e-05,2]
[343918831,1733065846127,-642.0526232,7.992e-05,2]
[343918832,1733065846155,-309982.77710931,7.992e-05,2]
[343918833,1733065846215,-2385.09969657,7.992e-05,2]
[343918834,1733065846227,-2063.18915953,7.992e-05,2]
[343918835,1733065846277,-719.685931,7.992e-05,2]
[343918836,1733065846289,-6530.71932122,7.992e-05,2]
[343918837,1733065846301,-1654.07342479,7.992e-05,2]
[343918838,1733065846312,-9437.15,7.992e-05,2]
[343918839,1733065846359,-4230.42961918,7.992e-05,2]
[343918840,1733065846395,-301.04524444,7.992e-05,2]
[343918841,1733065846406,-1697.27512363,7.992e-05,2]
[343918851,1733065846718,-5224.0,7.992e-05,2]
[343918862,1733065853107,9956.0,7.992e-05,10]
[343918877,1733066535815,300.0,7.125e-05,2]
[343918879,1733066622919,2937.52167478,0.00025,120]
[343918880,1733066630417,500.0,0.00025,120]
[343918881,1733066678558,150.0,7.16e-05,5]
[343918910,1733067003678,-150.0,7.16e-05,2]
[343918925,1733067032428,-541.345,7.345e-05,2]
[343918926,1733067032440,-2171.06118597,7.345e-05,2]
[343918927,1733067032648,-813.38692883,7.345e-05,2]
[343918928,1733067032659,-2638.2668852,7.345e-05,2]
[343918929,1733067032669,-176.18,7.359e-05,2]
[343918930,1733067032680,-1358.42,7.556e-05,2]
[343918931,1733067032692,-308.09,7.572e-05,2]
[343918932,1733067032707,-500.0,7.671e-05,2]
[343918933,1733067032716,-151.0,7.914e-05,2]
[343918934,1733067032726,-1049.13877153,7.987e-05,2]
[343918935,1733067032735,-7136.9552596,7.992e-05,2]
[343918936,1733067032747,-8662.17822359,7.992e-05,2]
[343918937,1733067032772,-1055.66498557,7.992e-05,2]
[343918938,1733067032784,-2977.72952091,7.992e-05,2]
[343918939,1733067032796,-3267.26391,7.992e-05,2]
[343918940,1733067036319,-1550.76703077,7.992e-05,2]
[343918941,1733067036409,-4821.97063952,7.992e-05,2]
[343919125,1733067038359,-989.2647,7.914e-05,2]
[343919128,1733067038371,-616.36091075,7.914e-05,2]
[343919130,1733067038385,-2577.8400004,7.914e-05,2]
[343919132,1733067038397,-880.70492909,7.914e-05,2]
[343919134,1733067038409,-668.0189712,7.914e-05,2]
[343919136,1733067038421,-226.81048856,7.914e-05,2]
[343919139,1733067038431,-3309.79465722,7.992e-05,2]
[343919140,1733067038442,-476.486,7.995e-05,2]
[343919142,1733067038451,-205.00908606,7.998e-05,2]
[343919144,1733067038461,-678.63799604,7.998e-05,2]
[343919151,1733067038513,-4999.96,7.998e-05,2]
[343919156,1733067038550,-3008.24486187,7.998e-05,2]
[343919175,1733067038748,-2177.10493433,7.998e-05,2]
[343919177,1733067038758,-11591.16912175,7.998e-05,2]
[343919179,1733067038770,-26244.55833,7.998e-05,2]
[343919409,1733067041173,-314.79316895,7.998e-05,2]
[343919410,1733067041186,-2765.2729515,7.998e-05,2]
[343919413,1733067041201,-525.56,7.998e-05,2]
[343919415,1733067041212,-445.8436063,7.998e-05,2]
[343919422,1733067041268,-6810.3935191,7.998e-05,2]
[343919423,1733067041278,-1429.821,7.998e-05,2]
[343919425,1733067041288,-534.0,7.998e-05,2]
[343919427,1733067041298,-3525.0,7.998e-05,2]
[343919428,1733067041308,-966.0,7.998e-05,2]
[343919429,1733067041318,-270.439,7.998e-05,2]
[343919430,1733067041327,-476.84419261,7.998e-05,2]
[343919431,1733067041339,-8556.4561912,7.998e-05,2]
[343919616,1733067043475,-1700.8423177,7.359e-05,2]
[343919617,1733067043486,-880.46,7.67e-05,2]
[343919618,1733067043496,-1165.0,7.914e-05,2]
[343919619,1733067043505,-4440.09081246,7.998e-05,2]
[343919620,1733067043516,-226.60880373,7.998e-05,2]
[343919621,1733067043525,-165.02619627,7.998e-05,2]
[343919622,1733067043653,-400.97380373,7.998e-05,2]
[343919623,1733067043663,-1260.0,7.998e-05,2]
[343919624,1733067043673,-1900.65245606,7.999e-05,2]
[343919625,1733067043684,-19677.54385491,7.999e-05,2]
[343919626,1733067043700,-4195.52549921,7.999e-05,2]
[343919627,1733067043711,-3624.36819327,7.999e-05,2]
[343919628,1733067043722,-3236.09137081,7.999e-05,2]
[343919629,1733067043743,-568.66000063,7.999e-05,2]
[343919630,1733067043756,-2995.6032381,7.999e-05,2]
[343919631,1733067043782,-2170.22982017,7.999e-05,2]
[343919632,1733067044079,-100474.35337437,7.999e-05,2]
[343919633,1733067044091,-6546.5,7.999e-05,2]
[343919637,1733067044132,-501.1493,7.999e-05,2]
[343919874,1733067046322,-282.704822,7.999e-05,2]
[343919875,1733067046334,-356.90000001,7.999e-05,2]
[343919876,1733067046346,-1146.709998,7.999e-05,2]
[343919877,1733067046357,-9468.00000001,7.999e-05,2]
[343919909,1733067046709,-4230.42961918,7.999e-05,2]
[343919911,1733067046721,-16179.866596,7.999e-05,2]
[343919913,1733067046732,-33481.29688463,7.999e-05,2]
[343919915,1733067046744,-61801.13499971,7.999e-05,2]
[343919919,1733067046775,-105340.47612686,7.999e-05,2]
[343919923,1733067046822,-1066.16858971,7.999e-05,2]
[343919925,1733067046834,-3130.4490367,7.999e-05,2]
[343919927,1733067120636,196.434848,0.00025,120]
[343919930,1733067726017,50000.0,0.0001,10]
[343919932,1733067793557,2000.0,0.00024878,120]
[343919933,1733067815325,2000.0,7.117e-05,2]
[343919935,1733067938337,381.46,7.005e-05,2]
[343919937,1733068000578,1755.37,6.888e-05,2]
[343919942,1733068042145,935.13,6.995e-05,2]
[343919951,1733068081908,150.0,7.159e-05,2]
[343919952,1733068089896,550.59,7.012e-05,2]
[343919953,1733068102814,1014.68,7.012e-05,2]
[343919954,1733068103156,2177.10493433,0.00025,120]
[343919955,1733068141329,50000.0,0.0001,10]
[343919962,1733068228479,4300.0,0.00016201,30]
[343919974,1733068231652,-200.0,7.166e-05,2]
[343919975,1733068231662,-1724.67932556,7.202e-05,2]
[343919976,1733068231672,-300.0,7.202e-05,2]
[343919977,1733068231682,-718.62067444,7.203e-05,2]
[343919978,1733068231694,-5623.79127327,7.203e-05,2]
[343919979,1733068231706,-1051.43947358,7.203e-05,2]
[343919980,1733068231718,-278.63857871,7.203e-05,2]
[343919981,1733068231728,-250.0,7.203e-05,2]
[343919982,1733068231738,-894.92,7.235e-05,2]
[343919983,1733068231749,-150.0,7.342e-05,2]
[343919984,1733068231760,-341.82,7.358e-05,2]
[343919985,1733068231773,-433.86,7.401e-05,2]
[343919986,1733068231782,-1114.42822414,7.401e-05,2]
[343919987,1733068231929,-312.65177586,7.401e-05,2]
[343919988,1733068231939,-161.79,7.535e-05,2]
[343919989,1733068231949,-318.13,7.54e-05,2]
[343919990,1733068231958,-150.0,7.54e-05,2]
[343919991,1733068231968,-519.97,7.63e-05,2]
[343919992,1733068231978,-2787.0,7.684e-05,2]
[343919993,1733068231988,-500.0,7.808e-05,2]
[343919994,1733068232003,-381.46,7.88e-05,2]
[343919995,1733068232013,-767.42,7.92e-05,2]
[343919997,1733068232023,-767.42,7.92e-05,2]
[343919999,1733068232033,-767.42,7.92e-05,2]
[343920001,1733068232042,-420.0,7.922e-05,2]
[343920003,1733068232052,-5000.00000001,7.955e-05,2]
[343920005,1733068232062,-150.0,7.997e-05,2]
[343920006,1733068232071,-445.82500683,7.998e-05,2]
[343920007,1733068232081,-751.017,7.998e-05,2]
[343920008,1733068232091,-106220.04617072,7.998e-05,2]
[343920009,1733068232101,-150.0,7.998e-05,2]
[343920010,1733068232114,-7449.37067258,7.998e-05,2]
[343920012,1733068232127,-6254.62932742,7.998e-05,2]
[343920013,1733068232136,-28257.16724088,7.999e-05,2]
[343920014,1733068232148,-437748.5540166,7.999e-05,2]
[343920015,1733068232160,-27820.10721731,7.999e-05,2]
[343920016,1733068232257,-106003.06824338,7.999e-05,2]
[343920017,1733068232269,-550.0,7.999e-05,2]
[343920018,1733068232282,-292015.46213766,7.999e-05,2]
[343920019,1733068232294,-302.78478601,7.999e-05,2]
[343920020,1733068232306,-9925.49821564,7.999e-05,2]
[343920021,1733068232317,-1384.13506939,7.999e-05,2]
[343920022,1733068232332,-6599.5,7.999e-05,2]
[343920023,1733068232343,-8094.4,7.999e-05,2]
[343920024,1733068232355,-256.27161942,7.999e-05,2]
[343920025,1733068232384,-13153.3974953,7.999e-05,2]
[343920033,1733068237629,-5031.36713102,7.999e-05,2]
[343920034,1733068237789,-633.004498,7.999e-05,2]
[343920035,1733068237800,-4555.76367251,7.999e-05,2]
[343920036,1733068237812,-1967.71065072,7.999e-05,2]
[343920037,1733068238052,-1891.28400005,7.999e-05,2]
[343920038,1733068238064,-1971.58,7.999e-05,2]
[343920039,1733068238076,-649.82179889,7.999e-05,2]
[343920101,1733068239878,-597.82499998,7.999e-05,2]
[343920102,1733068239890,-10826.30678088,7.999e-05,2]
[343920103,1733068239918,-2529.06054758,7.999e-05,2]
[343920104,1733068239929,-36887.82612331,7.999e-05,2]
[343920105,1733068239940,-18714.5548279,7.999e-05,2]
[343920299,1733068242656,-3961.45028005,7.999e-05,2]
[343920300,1733068242668,-531.73683005,7.999e-05,2]
[343920301,1733068243094,-2744.06211226,7.999e-05,2]
[343920302,1733068243105,-40510.85259191,7.999e-05,2]
[343920303,1733068243120,-2919.18375185,7.999e-05,2]
[343920304,1733068243132,-23954.00000022,7.999e-05,2]
[343920305,1733068243214,-24502.00745572,7.999e-05,2]
[343920307,1733068243320,-2052156.47474607,7.999e-05,2]
[343920308,1733068243332,-360.20251,7.999e-05,2]
[343920311,1733068243344,-49276.09040953,7.999e-05,2]
[343920382,1733068245823,-49327.3219617,7.999e-05,2]
[343920384,1733068245834,-4956.80053269,7.999e-05,2]
[343920386,1733068245846,-3747.60000001,7.999e-05,2]
[343920391,1733068245887,-613.36,7.999e-05,2]
[343920402,1733068245980,-1972.17613132,7.999e-05,2]
[343920408,1733068246035,-683.73924437,7.999e-05,2]
[343920410,1733068246046,-2150.0,7.999e-05,2]
[343920412,1733068246058,-2089.60004,7.999e-05,2]
[343920415,1733068246070,-39554.3049878,7.999e-05,2]
[343920417,1733068246081,-289.76723615,7.999e-05,2]
[343920419,1733068246092,-24663.38875,7.999e-05,2]
[343921632,1733068374496,369.84606177,0.00025,120]
[343921633,1733068414942,3000.0,7.16e-05,2]
[343921634,1733068473454,50000.0,0.0001,10]
[343921635,1733068579990,3000.0,0.00012,30]
[343921636,1733068580023,19000.0,0.00012,30]
[343921637,1733068626982,50000.0,0.0001,10]
[343921638,1733068682683,453.81,6.866e-05,2]
[343921639,1733068697666,21000.0,0.00012,30]
[343921640,1733068704118,771.06,6.868e-05,2]
[343921641,1733068712441,2930.37,6.868e-05,2]
[343921642,1733068784242,50000.0,0.0001,10]
[343921643,1733068803046,485.88,7.836e-05,14]
[343921644,1733068803646,150.0,6.868e-05,2]
[343921645,1733068805679,981.97,6.925e-05,2]
[343921646,1733068816655,500.0,6.866e-05,2]
[343921647,1733068851612,13946.74,6.866e-05,2]
[343921648,1733069002589,500.0,6.811e-05,2]
[343921649,1733069046604,250.0,6.871e-05,2]
[343921650,1733069135286,161.79,6.872e-05,2]
[343921651,1733069153760,157.95,6.872e-05,2]
[343921652,1733069161309,2000.0,6.874e-05,2]
[343921653,1733069170666,150.0,7.125e-05,2]
[343921659,1733069394104,-5318.228,7.327e-05,2]
[343921660,1733069394128,-228.97,7.327e-05,2]
[343921661,1733069394152,-300.0,7.38e-05,2]
[343921662,1733069394175,-150.0,7.38e-05,2]
[343921663,1733069394197,-34002.802,7.381e-05,2]
[343921664,1733069403476,-249.68327461,7.16e-05,2]
[343921665,1733069404177,-150.0,7.16e-05,2]
[343921666,1733069405166,-172.78711838,7.16e-05,2]
[343921667,1733069405604,-150.0,7.16e-05,2]
[343921668,1733069406339,-150.0,7.16e-05,2]
[343921669,1733069421951,12491.83951923,7.159e-05,2]
[343921692,1733069432552,-18366.198,7.381e-05,2]
[343921693,1733069432563,-161.508551,7.553e-05,2]
[343921694,1733069432574,-150.0,7.732e-05,2]
[343921695,1733069432586,-150.0,7.732e-05,2]
[343921696,1733069432597,-150.0,7.732e-05,2]
[343921697,1733069432609,-150.0,7.735e-05,2]
[343921698,1733069432621,-150.0,7.738e-05,2]
[343921699,1733069432632,-150.0,7.738e-05,2]
[343921700,1733069432642,-150.0,7.744e-05,2]
[343921701,1733069432653,-150.0,7.749e-05,2]
[343921702,1733069432664,-150.0,7.749e-05,2]
[343921703,1733069432673,-150.0,7.752e-05,2]
[343921704,1733069432683,-150.0,7.752e-05,2]
[343921705,1733069432694,-150.0,7.756e-05,2]
[343921706,1733069432704,-150.0,7.759e-05,2]
[343921707,1733069432714,-150.0,7.76e-05,2]
[343921708,1733069432724,-150.0,7.764e-05,2]
[343921709,1733069432733,-150.0,7.765e-05,2]
[343921710,1733069432743,-150.0,7.769e-05,2]
[343921711,1733069432753,-150.0,7.774e-05,2]
[343921712,1733069432763,-150.0,7.777e-05,2]
[343921713,1733069432773,-150.0,7.78e-05,2]
[343921714,1733069432783,-150.0,7.782e-05,2]
[343921715,1733069432799,-150.0,7.787e-05,2]
[343921716,1733069432811,-150.0,7.789e-05,2]
[343921717,1733069432821,-150.0,7.791e-05,2]
[343921718,1733069432830,-177.93321156,7.791e-05,2]
[343921719,1733069432841,-150.0,7.792e-05,2]
[343921720,1733069432850,-150.0,7.793e-05,2]
[343921721,1733069432860,-300.0,7.795e-05,2]
[343921722,1733069432870,-150.0,7.806e-05,2]
[343921723,1733069432879,-150.0,7.814e-05,2]
[343921724,1733069432889,-150.0,7.817e-05,2]
[343921725,1733069432899,-150.0,7.819e-05,2]
[343921726,1733069432908,-300.0,7.821e-05,2]
[343921727,1733069432918,-150.0,7.824e-05,2]
[343921728,1733069432928,-150.0,7.824e-05,2]
[343921729,1733069432937,-150.0,7.828e-05,2]
[343921730,1733069432946,-150.0,7.833e-05,2]
[343921731,1733069432956,-150.0,7.835e-05,2]
[343921732,1733069432965,-150.0,7.839e-05,2]
[343921733,1733069432975,-150.0,7.842e-05,2]
[343921734,1733069432984,-150.0,7.844e-05,2]
[343921735,1733069432994,-150.0,7.847e-05,2]
[343921736,1733069433004,-150.0,7.849e-05,2]
[343921737,1733069433013,-150.0,7.852e-05,2]
[343921738,1733069433023,-150.0,7.854e-05,2]
[343921739,1733069433034,-150.0,7.855e-05,2]
[343921740,1733069433047,-150.0,7.857e-05,2]
[343921741,1733069433057,-150.0,7.86e-05,2]
[343921742,1733069433069,-150.0,7.861e-05,2]
[343921743,1733069433079,-150.0,7.862e-05,2]
[343921744,1733069433089,-150.0,7.863e-05,2]
[343921745,1733069433108,-150.0,7.876e-05,2]
[343921746,1733069433119,-150.0,7.877e-05,2]
[343921747,1733069433129,-150.0,7.878e-05,2]
[343921748,1733069433140,-150.0,7.885e-05,2]
[343921749,1733069433151,-150.0,7.889e-05,2]
[343921750,1733069433161,-150.0,7.892e-05,2]
[343921751,1733069433172,-150.0,7.892e-05,2]
[343921752,1733069433182,-150.0,7.898e-05,2]
[343921753,1733069433191,-5247.7827,7.898e-05,2]
[343921754,1733069433202,-500.0,7.899e-05,2]
[343921755,1733069433212,-2430.83893681,7.899e-05,2]
[343921756,1733069433222,-1000.0,7.899e-05,2]
[343921757,1733069433232,-755.0,7.9e-05,2]
[343921758,1733069433242,-150.0,7.906e-05,2]
[343921759,1733069433253,-150.0,7.909e-05,2]
[343921760,1733069433263,-150.0,7.919e-05,2]
[343921761,1733069433273,-150.0,7.922e-05,2]
[343921762,1733069433283,-150.0,7.922e-05,2]
[343921763,1733069433296,-150.0,7.923e-05,2]
[343921764,1733069433306,-150.0,7.924e-05,2]
[343921765,1733069433316,-150.0,7.934e-05,2]
[343921766,1733069433326,-150.0,7.936e-05,2]
[343921767,1733069433336,-8540.456,7.936e-05,2]
[343921768,1733069433345,-150.0,7.938e-05,2]
[343921769,1733069433355,-150.0,7.943e-05,2]
[343921770,1733069433365,-150.0,7.948e-05,2]
[343921771,1733069433375,-150.0,7.952e-05,2]
[343921772,1733069433385,-150.0,7.954e-05,2]
[343921773,1733069433395,-617.95663775,7.956e-05,2]
[343921774,1733069433405,-133604.94903017,7.956e-05,2]
[343921775,1733069433415,-1947.78310429,7.956e-05,2]
[343921776,1733069433458,-620.931,7.956e-05,2]
[343921777,1733069433470,-422.33750001,7.956e-05,2]
[343921778,1733069433561,-12938.77880767,7.956e-05,2]
[343921779,1733069433571,-447.62823451,7.957e-05,2]
[343921780,1733069433581,-447.62823451,7.958e-05,2]
[343921781,1733069433594,-150.0,7.958e-05,2]
[343921782,1733069433604,-617.95663775,7.958e-05,2]
[343921783,1733069433615,-200.0,7.958e-05,2]
[343921784,1733069433628,-150.0,7.959e-05,2]
[343921785,1733069433638,-617.95663775,7.96e-05,2]
[343921786,1733069433648,-133604.94903017,7.96e-05,2]
[343921787,1733069433658,-447.62823451,7.96e-05,2]
[343921788,1733069433668,-467676.78655347,7.961e-05,2]
[343921789,1733069433678,-133604.94903017,7.962e-05,2]
[343921790,1733069433688,-150.0,7.962e-05,2]
[343921791,1733069433699,-150.0,7.963e-05,2]
[343921792,1733069433709,-19965.51280666,7.964e-05,2]
[343921793,1733069433719,-617.95663775,7.966e-05,2]
[343921794,1733069433729,-706.88264194,7.966e-05,2]
[343921795,1733069433739,-150.0,7.966e-05,2]
[343921796,1733069433748,-467676.78655347,7.966e-05,2]
[343921797,1733069433758,-447.62823451,7.966e-05,2]
[343921798,1733069433768,-467676.78655347,7.967e-05,2]
[343921799,1733069433778,-19965.51280666,7.967e-05,2]
[343921800,1733069433791,-200.0,7.968e-05,2]
[343921801,1733069433801,-19965.51280666,7.968e-05,2]
[343921802,1733069433812,-467676.78655347,7.97e-05,2]
[343921803,1733069433823,-617.95663775,7.97e-05,2]
[343921804,1733069433835,-150.0,7.971e-05,2]
[343921805,1733069433846,-133604.94903017,7.971e-05,2]
[343921806,1733069433857,-200.0,7.971e-05,2]
[343921807,1733069433867,-467676.78655347,7.973e-05,2]
[343921808,1733069433878,-500.0,7.973e-05,2]
[343921809,1733069433889,-501.66210452,7.973e-05,2]
[343921810,1733069433899,-19965.51280666,7.973e-05,2]
[343921811,1733069433910,-447.62823451,7.974e-05,2]
[343921812,1733069433922,-133604.94903017,7.975e-05,2]
[343921813,1733069433933,-447.62823451,7.975e-05,2]
[343921814,1733069433943,-21991.33942403,7.976e-05,2]
[343921815,1733069433954,-200.0,7.976e-05,2]
[343921816,1733069433964,-133604.94903017,7.976e-05,2]
[343921817,1733069433975,-19965.51280666,7.977e-05,2]
[343921818,1733069433985,-617.95663775,7.977e-05,2]
[343921819,1733069433995,-150.0,7.978e-05,2]
[343921820,1733069434004,-200.0,7.978e-05,2]
[343921821,1733069434014,-19965.51280666,7.978e-05,2]
[343921822,1733069434024,-467676.78655347,7.979e-05,2]
[343921823,1733069434034,-150.0,7.981e-05,2]
[343921824,1733069434047,-150.0,7.983e-05,2]
[343921825,1733069434056,-150.0,7.984e-05,2]
[343921826,1733069434067,-150.0,7.988e-05,2]
[343921827,1733069434077,-150.0,7.989e-05,2]
[343921828,1733069434086,-150.0,7.992e-05,2]
[343921829,1733069434096,-150.0,7.992e-05,2]